bitfinex/quotes_BTCUSD_20241206
["timestamp","ask_amount","ask_price","bid_price","bid_amount"]
[1733484107984,0.73272236,98001.0,98000.0,0.0029044]
[1733484108190,0.73772236,98001.0,98000.0,0.0029044]
[1733484108409,0.81002236,98001.0,98000.0,0.0019044]
[1733484108630,0.81002236,98001.0,98000.0,0.0029044]
[1733484108848,0.82802236,98001.0,98000.0,0.0029044]
[1733484110148,0.7029474,98001.0,98000.0,0.0029044]
[1733484110577,0.6256474,98001.0,98000.0,0.0029044]
[1733484117963,0.8705704,98001.0,98000.0,0.0029044]
[1733484120811,0.6664914,98001.0,98000.0,0.0029044]
[1733484121021,0.49607461,98001.0,98000.0,0.0029044]
[1733484121227,0.49607461,98001.0,98000.0,0.01050855]
[1733484121430,0.52061586,98001.0,98000.0,0.01050855]
[1733484121853,0.52061586,98001.0,98000.0,0.0029044]
[1733484121854,0.57685983,98001.0,98000.0,0.0029044]
[1733484122505,0.52061586,98001.0,98000.0,0.0029044]
[1733484122747,0.49607461,98001.0,98000.0,0.0029044]
[1733484122950,0.48850149,98001.0,98000.0,0.0029044]
[1733484123161,0.48850149,98001.0,98000.0,0.01050855]
[1733484123594,0.48850149,98001.0,98000.0,0.21458955]
[1733484124242,0.48850149,98001.0,98000.0,0.30602215]
[1733484124466,0.48850149,98001.0,98000.0,0.21458955]
[1733484124685,0.48850149,98001.0,98000.0,0.01050855]
[1733484125098,0.51304274,98001.0,98000.0,0.01050855]
[1733484125322,0.48850149,98001.0,98000.0,0.34836064]
[1733484125521,0.0008653,98010.0,98009.0,0.204062]
[1733484125773,0.0008653,98010.0,98009.0,0.54191409]
[1733484125977,0.0008653,98010.0,98009.0,0.54202482]
[1733484126192,0.0008653,98010.0,98009.0,0.54962897]
[1733484126606,0.0008653,98010.0,98009.0,0.59612897]
[1733484127689,0.0098653,98010.0,98009.0,0.59712897]
[1733484127904,0.0188653,98010.0,98009.0,0.59712897]
[1733484128106,0.0098653,98010.0,98009.0,0.59612897]
[1733484128321,0.0018653,98010.0,98009.0,0.60512897]
[1733484128523,0.0018653,98010.0,98009.0,0.55862897]
[1733484128732,0.0028653,98010.0,98009.0,0.56262897]
[1733484129827,0.0028653,98010.0,98009.0,0.35856697]
[1733484132648,0.0028653,98010.0,98009.0,0.43406697]
[1733484132857,0.0028653,98010.0,98009.0,0.48276697]
[1733484133310,0.0009876,98020.0,98009.0,0.48276697]
[1733484133529,0.0009876,98020.0,98019.0,0.204042]
[1733484133732,0.0009876,98020.0,98019.0,0.54200482]
[1733484133948,0.47050149,98022.0,98019.0,0.75359305]
[1733484134138,0.47050149,98027.0,98026.0,0.204027]
[1733484134361,0.47050149,98027.0,98026.0,0.34122017]
[1733484134587,0.47050149,98027.0,98026.0,0.204027]
[1733484134789,0.47050149,98027.0,98026.0,0.54919812]
[1733484135400,0.47050149,98027.0,98026.0,0.54917674]
[1733484135810,0.47950149,98027.0,98026.0,0.54917674]
[1733484136491,0.47950149,98027.0,98026.0,0.34869669]
[1733484137138,0.48850149,98027.0,98026.0,0.34969669]
[1733484137353,0.48850149,98027.0,98026.0,0.21257323]
[1733484138504,0.48850149,98027.0,98026.0,0.30395153]
[1733484138721,0.018,98027.0,98026.0,0.30395153]
[1733484139170,0.018,98027.0,98026.0,0.09992453]
[1733484139392,0.04254125,98027.0,98026.0,0.00854623]
[1733484142377,0.018,98027.0,98026.0,0.09054623]
[1733484143233,0.09393204,98027.0,98026.0,0.00854623]
[1733484143434,0.04254125,98027.0,98026.0,0.001]
[1733484143641,0.04254125,98027.0,98026.0,0.00844001]
[1733484143892,1.67334125,98027.0,98026.0,0.00844001]
[1733484144120,1.77837279,98027.0,98026.0,0.001]
[1733484144342,1.93326771,98027.0,98026.0,0.001]
[1733484144595,0.51950149,98026.0,98010.0,0.0017304]
[1733484144837,0.204058,98011.0,98010.0,0.0017304]
[1733484145049,0.02454125,98011.0,98010.0,0.0017304]
[1733484146976,0.03354125,98011.0,98010.0,0.0027304]
[1733484147191,0.03354125,98011.0,98010.0,0.0017304]
[1733484147396,0.04254125,98011.0,98010.0,0.0017304]
[1733484147611,0.51204274,98011.0,98010.0,0.0017304]
[1733484147821,0.55941669,98011.0,98010.0,0.0017304]
[1733484150182,0.51204274,98011.0,98010.0,0.0017304]
[1733484154681,0.59394274,98011.0,98010.0,0.0017304]
[1733484155517,0.59394274,98011.0,98010.0,0.00927227]
[1733484155726,0.51204274,98011.0,98010.0,0.0017304]
[1733484155945,0.48750149,98011.0,98010.0,0.10065847]
[1733484156162,0.48750149,98011.0,98010.0,0.0017304]
[1733484156382,0.00531927,98025.0,98010.0,0.0017304]
[1733484156383,0.02454125,98016.0,98011.0,0.204058]
[1733484156585,0.02454125,98016.0,98011.0,0.09140967]
[1733484156788,0.02454125,98016.0,98010.0,0.09314007]
[1733484157005,0.02454125,98016.0,98012.0,0.00752657]
[1733484157294,0.02454125,98016.0,98010.0,0.0017304]
[1733484157514,0.04254125,98016.0,98013.0,0.00752657]
[1733484157729,0.04254125,98016.0,98011.0,0.001]
[1733484157940,0.04254125,98016.0,98014.0,0.00752657]
[1733484157941,0.03354125,98016.0,98014.0,0.00752657]
[1733484158170,0.04254125,98016.0,98012.0,0.001]
[1733484158394,0.04254125,98016.0,98015.0,0.00752657]
[1733484158632,0.04254125,98016.0,98010.0,0.0017304]
[1733484158633,0.03354125,98016.0,98010.0,0.0017304]
[1733484158878,0.03354125,98016.0,98015.0,0.00752657]
[1733484159112,0.03354125,98016.0,98010.0,0.2057894]
[1733484159317,0.02454125,98016.0,98015.0,0.00752657]
[1733484159521,0.02454125,98016.0,98010.0,0.29719907]
[1733484159730,0.03354125,98016.0,98015.0,0.00752386]
[1733484159939,0.03354125,98016.0,98012.0,0.001]
[1733484160157,0.02754125,98016.0,98015.0,0.00752386]
[1733484160365,0.02454125,98016.0,98011.0,0.09145721]
[1733484160574,0.02454125,98016.0,98010.0,0.2057894]
[1733484160575,0.03254125,98016.0,98015.0,0.00752386]
[1733484160810,0.011,98016.0,98014.0,0.204052]
[1733484161054,0.5336,98026.0,98014.0,0.204052]
[1733484161055,0.02454125,98023.0,98016.0,0.408095]
[1733484161273,0.02454125,98024.0,98016.0,0.408095]
[1733484161481,0.02454125,98027.0,98019.0,0.20404]
[1733484161697,0.02454125,98023.0,98019.0,0.20404]
[1733484161899,0.02454125,98023.0,98016.0,0.29550421]
[1733484162124,0.02454125,98027.0,98020.0,0.00752386]
[1733484162346,0.02454125,98028.0,98025.0,0.204028]
[1733484162579,0.55542383,98032.0,98025.0,0.408057]
[1733484162580,0.55814125,98032.0,98025.0,0.408057]
[1733484162793,0.55814125,98032.0,98025.0,0.204028]
[1733484163005,0.55814125,98032.0,98028.0,0.204021]
[1733484163439,0.02454125,98027.0,98025.0,0.204028]
[1733484163795,0.03354125,98027.0,98025.0,0.001]
[1733484163895,0.009,98027.0,98025.0,0.001]
[1733484164136,0.02454125,98027.0,98024.0,0.09151784]
[1733484164359,0.02454125,98027.0,98025.0,0.09151784]
[1733484165047,0.009,98027.0,98025.0,0.09251784]
[1733484165290,0.009,98027.0,98026.0,0.09151784]
[1733484165784,0.009,98027.0,98025.0,0.205028]
[1733484166024,0.009,98027.0,98025.0,0.34230476]
[1733484166240,0.009,98027.0,98026.0,0.33790342]
[1733484166492,0.017,98027.0,98026.0,0.33790342]
[1733484166719,0.008,98027.0,98026.0,0.33790342]
[1733484166941,0.017,98027.0,98026.0,0.33890342]
[1733484167158,0.009,98027.0,98026.0,0.33890342]
[1733484167392,0.00119176,98040.0,98037.0,0.023]
[1733484167672,0.00119176,98040.0,98038.0,0.75003696]
[1733484167891,0.00119176,98040.0,98039.0,0.023]
[1733484168120,0.00119176,98040.0,98039.0,0.9389578]
[1733484168366,0.00127466,98074.0,98039.0,0.9389578]
[1733484168367,0.00127466,98074.0,98039.0,0.93886362]
[1733484168610,0.5336,98076.0,98049.0,0.203979]
[1733484168868,0.00127465,98075.0,98049.0,0.66985724]
[1733484169982,0.15127465,98075.0,98049.0,0.66985724]
[1733484170223,0.0018653,98050.0,98049.0,0.67885724]
[1733484170474,0.0018653,98050.0,98049.0,0.75895724]
[1733484170704,0.0008653,98050.0,98049.0,0.74995724]
[1733484170939,0.0008653,98050.0,98049.0,0.87010904]
[1733484171179,0.0018653,98050.0,98049.0,0.87010904]
[1733484171532,0.00048369,98050.0,98049.0,0.87010904]
[1733484172579,0.000981,98076.0,98054.0,0.1]
[1733484172857,0.000865,98080.0,98069.0,0.353638]
[1733484173099,0.000865,98080.0,98069.0,0.79651624]
[1733484173554,0.000865,98080.0,98069.0,0.80393241]
[1733484174017,0.000865,98080.0,98069.0,0.81293241]
[1733484174231,0.0010393,98070.0,98069.0,0.81293241]
[1733484174442,0.0010393,98070.0,98069.0,0.90608421]
[1733484174666,0.0010393,98070.0,98069.0,0.91508421]
[1733484175657,0.0020393,98070.0,98069.0,0.92408421]
[1733484176132,0.0010393,98070.0,98069.0,0.91508421]
[1733484176353,0.000865,98080.0,98069.0,0.91508421]
[1733484176354,0.000865,98080.0,98079.0,0.226917]
[1733484176571,0.000865,98080.0,98079.0,0.69248694]
[1733484176834,0.000865,98080.0,98079.0,0.69956535]
[1733484177730,0.0841897,98107.0,98079.0,0.69956535]
[1733484177731,0.0841897,98107.0,98106.0,0.203861]
[1733484178198,0.0832,98107.0,98106.0,0.203861]
[1733484178422,0.0472,98109.0,98106.0,0.41480041]
[1733484178878,0.0472,98109.0,98106.0,0.21093941]
[1733484179111,0.04778146,98109.0,98106.0,0.21093941]
[1733484179619,0.006,98107.0,98106.0,0.21193941]
[1733484179840,0.007,98107.0,98106.0,0.21293941]
[1733484180056,0.001,98107.0,98106.0,0.21193941]
[1733484180282,0.04778146,98109.0,98106.0,0.21193941]
[1733484180531,0.00058146,98109.0,98106.0,0.41580041]
[1733484180752,0.00058146,98109.0,98106.0,0.41680041]
[1733484180980,0.00058146,98109.0,98106.0,0.41580041]
[1733484181200,0.00058146,98109.0,98106.0,0.50775751]
[1733484181427,0.00058146,98109.0,98108.0,0.203856]
[1733484181895,0.00058146,98109.0,98108.0,0.21090979]
[1733484182131,0.00058146,98109.0,98108.0,0.30186689]
[1733484182358,0.00058146,98109.0,98108.0,0.21090979]
[1733484182594,0.00099,98126.0,98109.0,0.023]
[1733484182824,0.00103956,98110.0,98109.0,0.06803001]
[1733484183061,0.00103956,98110.0,98109.0,0.4700055]
[1733484183520,0.0008671,98130.0,98119.0,0.226834]
[1733484183726,0.0008671,98130.0,98119.0,0.40811799]
[1733484183938,0.0008671,98130.0,98119.0,0.75006297]
[1733484184149,0.0489812,98137.0,98119.0,0.54622897]
[1733484184367,0.0489812,98137.0,98134.0,0.203802]
[1733484184576,0.0489812,98137.0,98124.0,0.09063176]
[1733484184787,0.048,98137.0,98130.0,0.20381]
[1733484185011,0.048,98137.0,98127.0,0.203816]
[1733484185223,0.04927376,98137.0,98131.0,0.00575972]
[1733484185435,0.00127376,98136.0,98127.0,0.203816]
[1733484185649,0.048,98137.0,98132.0,0.00575972]
[1733484185852,0.0008671,98140.0,98132.0,0.20956672]
[1733484186066,0.00104129,98140.0,98132.0,0.203807]
[1733484186274,0.00104129,98140.0,98138.0,0.203794]
[1733484186485,0.02182383,98145.0,98138.0,0.203794]
[1733484186705,0.0827,98148.0,98139.0,0.0048101]
[1733484186975,0.0827,98148.0,98146.0,0.203777]
[1733484187381,0.0827,98148.0,98147.0,0.00480969]
[1733484187800,0.075,98155.0,98147.0,0.00480969]
[1733484188471,0.0468,98156.0,98148.0,0.203773]
[1733484188688,0.0008653,98160.0,98149.0,0.06161427]
[1733484188895,0.0008653,98160.0,98149.0,0.00480969]
[1733484189110,0.0008653,98160.0,98159.0,0.203751]
[1733484189319,0.0008653,98160.0,98154.0,0.20376]
[1733484189556,0.0008653,98160.0,98139.0,0.0482]
[1733484189557,0.006,98150.0,98147.0,0.001]
[1733484189759,0.007865,98150.0,98149.0,0.001]
[1733484189967,0.001865,98150.0,98149.0,0.001]
[1733484190187,0.001865,98150.0,98148.0,0.203773]
[1733484190188,0.000865,98150.0,98148.0,0.203773]
[1733484190401,0.000865,98150.0,98149.0,0.15080884]
[1733484190608,0.000865,98150.0,98149.0,0.23110884]
[1733484191490,0.000865,98150.0,98149.0,0.1260773]
[1733484191695,0.004865,98150.0,98149.0,0.024]
[1733484192160,0.005865,98150.0,98149.0,0.002]
[1733484192396,0.000865,98150.0,98148.0,0.203773]
[1733484192612,0.000865,98150.0,98149.0,0.001]
[1733484192613,0.004,98150.0,98149.0,0.001]
[1733484192820,0.005,98150.0,98149.0,0.002]
[1733484193068,0.001,98150.0,98145.0,0.20378]
[1733484193298,0.001,98150.0,98139.0,0.203792]
[1733484193505,0.006,98150.0,98149.0,0.002]
[1733484193721,0.004,98150.0,98149.0,0.001]
[1733484194138,0.005,98150.0,98149.0,0.002]
[1733484195004,0.001,98150.0,98149.0,0.001]
[1733484195418,0.005,98150.0,98149.0,0.001]
[1733484195630,0.006,98150.0,98149.0,0.02725375]
[1733484195845,0.006,98150.0,98149.0,0.002]
[1733484196071,0.001,98150.0,98149.0,0.00577555]
[1733484196294,0.001,98150.0,98149.0,0.001]
[1733484196526,0.0766,98168.0,98159.0,0.203749]
[1733484196738,0.0766,98168.0,98149.0,0.00674878]
[1733484196955,0.0766,98168.0,98149.0,0.002]
[1733484196956,0.00127338,98167.0,98149.0,0.002]
[1733484197186,0.203743,98163.0,98149.0,0.002]
[1733484197413,0.203734,98167.0,98150.0,0.20851778]
[1733484197640,0.00127338,98166.0,98150.0,0.00474878]
[1733484197851,0.00127338,98166.0,98151.0,0.203767]
[1733484198067,0.203734,98167.0,98151.0,0.203767]
[1733484198283,0.203734,98167.0,98151.0,0.2084215]
[1733484198763,0.0816,98168.0,98159.0,0.001]
[1733484199005,0.203711,98179.0,98159.0,0.002]
[1733484199239,0.203711,98179.0,98160.0,0.00465477]
[1733484199240,0.203727,98171.0,98160.0,0.00465477]
[1733484199462,0.005,98167.0,98156.0,0.203755]
[1733484199687,0.005,98167.0,98161.0,0.00465477]
[1733484199906,0.203719,98174.0,98156.0,0.203755]
[1733484200136,0.10503154,98173.0,98162.0,0.00465477]
[1733484200365,0.10503154,98173.0,98153.0,0.203763]
[1733484200586,0.203726,98171.0,98163.0,0.00465477]
[1733484200801,0.00127338,98170.0,98153.0,0.203763]
[1733484201249,0.00127338,98170.0,98159.0,0.001]
[1733484201469,0.20373,98169.0,98159.0,0.001]
[1733484201693,0.00127338,98168.0,98154.0,0.00465477]
[1733484201935,0.0008643,98170.0,98162.0,0.203744]
[1733484202134,0.0018643,98170.0,98160.0,0.001]
[1733484202579,0.0018643,98170.0,98163.0,0.00464974]
[1733484202582,0.0008643,98170.0,98163.0,0.20374]
[1733484202797,0.0008643,98170.0,98164.0,0.20374]
[1733484203260,0.0008643,98170.0,98165.0,0.00464974]
[1733484203703,0.0008643,98170.0,98166.0,0.00464974]
[1733484203920,0.0008643,98170.0,98162.0,0.001]
[1733484204135,0.0008643,98170.0,98167.0,0.00464974]
[1733484204356,0.0008643,98170.0,98163.0,0.20374]
[1733484204811,0.0008643,98170.0,98164.0,0.00464974]
[1733484205049,0.0018643,98170.0,98164.0,0.00464974]
[1733484205286,0.0018643,98170.0,98164.0,0.001]
[1733484205527,0.0008643,98170.0,98165.0,0.00464974]
[1733484205983,0.0018643,98170.0,98165.0,0.00464974]
[1733484206438,0.0018643,98170.0,98166.0,0.203735]
[1733484206667,0.0476,98176.0,98166.0,0.203735]
[1733484207129,0.0476,98176.0,98167.0,0.00464974]
[1733484207612,0.001,98170.0,98167.0,0.00464974]
[1733484207834,0.001,98170.0,98165.0,0.001]
[1733484208062,0.001,98170.0,98168.0,0.00464974]
[1733484208300,0.001,98170.0,98165.0,0.203737]
[1733484208540,0.0476,98176.0,98169.0,0.00464974]
[1733484208757,0.0486,98176.0,98167.0,0.001]
[1733484209001,0.00127325,98175.0,98167.0,0.001]
[1733484209227,0.00127325,98175.0,98165.0,0.001]
[1733484209228,0.203719,98174.0,98168.0,0.00464974]
[1733484209448,0.25149116,98176.0,98168.0,0.00464974]
[1733484209449,0.04777416,98176.0,98168.0,0.00464974]
[1733484209671,0.04777416,98176.0,98165.0,0.001]
[1733484209918,0.04777416,98176.0,98169.0,0.00464974]
[1733484210183,0.00017416,98176.0,98174.0,0.203719]
[1733484210411,0.0009842,98179.0,98170.0,0.00461746]
[1733484210629,0.0008651,98180.0,98177.0,0.203711]
[1733484211100,0.0008651,98180.0,98177.0,0.407423]
[1733484211318,0.000986,98190.0,98173.0,0.203721]
[1733484211319,0.000986,98190.0,98179.0,0.023]
[1733484211548,0.000986,98190.0,98189.0,0.203688]
[1733484211768,0.02,98195.0,98182.0,0.023]
[1733484212450,0.02,98195.0,98186.0,0.203693]
[1733484212929,0.02,98195.0,98189.0,0.001]
[1733484213165,0.02,98195.0,98191.0,0.203684]
[1733484213416,0.02,98195.0,98191.0,0.407368]
[1733484213643,0.02,98195.0,98193.0,0.20368]
[1733484214115,0.02,98195.0,98194.0,0.00460222]
[1733484215328,0.02,98195.0,98191.0,0.203684]
[1733484215556,0.02,98195.0,98194.0,0.00560222]
[1733484215768,0.02,98195.0,98194.0,0.001]
[1733484216214,0.02,98195.0,98194.0,0.00660222]
[1733484216650,0.02,98195.0,98194.0,0.00560222]
[1733484217764,0.02,98195.0,98194.0,0.002]
[1733484218233,0.02,98195.0,98194.0,0.00460222]
[1733484218478,0.02,98195.0,98194.0,0.001]
[1733484218694,0.02,98195.0,98194.0,0.002]
[1733484218941,0.02,98195.0,98194.0,0.001]
[1733484219194,0.02,98195.0,98194.0,0.002]
[1733484219438,0.02,98195.0,98194.0,0.001]
[1733484219908,0.02,98195.0,98194.0,0.002]
[1733484220360,0.203676,98195.0,98194.0,0.001]
[1733484220603,0.203674,98197.0,98194.0,0.001]
[1733484220835,0.203674,98197.0,98194.0,0.002]
[1733484221054,0.00127299,98196.0,98194.0,0.002]
[1733484221275,0.203676,98195.0,98194.0,0.002]
[1733484221516,0.203676,98195.0,98185.0,0.09062036]
[1733484221769,0.251866,98200.0,98194.0,0.00455874]
[1733484221996,0.203676,98195.0,98194.0,0.00555874]
[1733484222229,0.203703,98182.0,98179.0,0.09062036]
[1733484222443,0.04787323,98181.0,98174.0,0.09062036]
[1733484222679,0.04787323,98181.0,98180.0,0.00455874]
[1733484222897,0.203707,98180.0,98171.0,0.09062036]
[1733484223146,0.203711,98178.0,98171.0,0.09062036]
[1733484223364,0.00127325,98177.0,98167.0,0.00017416]
[1733484223616,0.04680238,98177.0,98167.0,0.00017416]
[1733484223839,0.203707,98180.0,98167.0,0.00017416]
[1733484224076,0.18693154,98179.0,98167.0,0.00017416]
[1733484224279,0.18820479,98179.0,98171.0,0.001]
[1733484224509,0.203724,98172.0,98171.0,0.001]
[1733484224726,0.30875554,98172.0,98171.0,0.001]
[1733484224962,0.31635045,98172.0,98171.0,0.001]
[1733484225440,0.30875554,98172.0,98171.0,0.001]
[1733484225706,0.40719544,98172.0,98171.0,0.002]
[1733484225948,0.40719544,98172.0,98170.0,0.0017274]
[1733484226203,0.11390178,98171.0,98170.0,0.0017274]
[1733484227824,0.11390178,98171.0,98170.0,0.0027274]
[1733484227825,0.11990178,98171.0,98170.0,0.0027274]
[1733484228062,0.12890178,98171.0,98170.0,0.0037274]
[1733484228308,0.12890178,98171.0,98170.0,0.0027274]
[1733484228767,0.13790178,98171.0,98170.0,0.0037274]
[1733484229024,0.22563274,98171.0,98170.0,0.0037274]
[1733484229263,0.2183593,98171.0,98170.0,0.0027274]
[1733484229380,0.2243593,98171.0,98170.0,0.0037274]
[1733484230027,0.13662834,98171.0,98170.0,0.0037274]
[1733484230231,0.13790183,98171.0,98170.0,0.0037274]
[1733484230892,0.0315968,98171.0,98170.0,0.0037274]
[1733484231128,0.024,98171.0,98170.0,0.0037274]
[1733484232411,0.024,98171.0,98170.0,0.14017459]
[1733484232619,0.024,98171.0,98170.0,0.0037274]
[1733484233743,0.024,98171.0,98170.0,0.14142555]
[1733484233950,0.024,98171.0,98170.0,0.00474597]
[1733484234152,0.024,98171.0,98170.0,0.14142555]
[1733484234370,0.024,98171.0,98170.0,0.02774597]
[1733484234605,0.024,98171.0,98170.0,0.29077556]
[1733484234839,0.024,98171.0,98170.0,0.62608158]
[1733484235274,0.024,98171.0,98170.0,0.44415199]
[1733484236322,0.024,98171.0,98170.0,0.58080196]
[1733484237397,0.024,98171.0,98170.0,0.1078274]
[1733484237603,0.024,98171.0,98170.0,0.1088459]
[1733484238471,0.024,98171.0,98170.0,0.21374082]
[1733484238701,0.024,98171.0,98170.0,0.21272232]
[1733484238922,0.024,98171.0,98170.0,0.34937229]
[1733484239139,0.024,98171.0,98170.0,0.24447737]
[1733484239361,0.024,98171.0,98170.0,0.1078274]
[1733484239591,0.024,98171.0,98170.0,0.10884587]
[1733484241377,0.024,98171.0,98170.0,0.24547158]
[1733484241611,0.024,98171.0,98170.0,0.34934803]
[1733484242039,0.024,98171.0,98170.0,0.24445311]
[1733484242483,0.024,98171.0,98170.0,0.1078274]
[1733484242690,0.024,98171.0,98170.0,0.10884587]
[1733484243324,0.024,98171.0,98170.0,0.24551479]
[1733484243530,0.024,98171.0,98170.0,0.58085536]
[1733484243758,0.024,98171.0,98170.0,0.1078274]
[1733484243963,0.024,98171.0,98170.0,0.24552264]
[1733484244184,0.024,98171.0,98170.0,0.1078274]
[1733484244385,0.024,98171.0,98170.0,0.5818878]
[1733484244605,0.024,98171.0,98170.0,0.24450417]
[1733484245255,0.024,98171.0,98170.0,0.58087977]
[1733484245488,0.024,98171.0,98170.0,0.444203]
[1733484245727,0.024,98171.0,98170.0,0.1078274]
[1733484245945,0.024,98171.0,98170.0,0.24452173]
[1733484246163,0.024,98171.0,98170.0,0.58092271]
[1733484246401,0.024,98171.0,98170.0,0.44422838]
[1733484247113,0.024,98171.0,98170.0,0.1078274]
[1733484247335,0.024,98171.0,98170.0,0.24453118]
[1733484247561,0.024,98171.0,98170.0,0.1078274]
[1733484247783,0.024,98171.0,98170.0,0.44424686]
[1733484250316,0.024,98171.0,98170.0,0.24458918]
[1733484250536,0.024,98171.0,98170.0,0.58115099]
[1733484250718,0.024,98171.0,98170.0,0.44438921]
[1733484251084,0.024,98171.0,98170.0,0.58115478]
[1733484251712,0.024,98171.0,98170.0,0.44438921]
[1733484251926,0.024,98171.0,98170.0,0.24459788]
[1733484252094,0.024,98171.0,98170.0,0.0037274]
[1733484252305,0.14420154,98171.0,98170.0,0.0037274]
[1733484252532,0.15307786,98171.0,98170.0,0.0037274]
[1733484252958,0.13790786,98171.0,98170.0,0.0037274]
[1733484253170,0.13030497,98171.0,98170.0,0.0037274]
[1733484253384,0.10630497,98171.0,98170.0,0.0017274]
[1733484253598,0.11530497,98171.0,98170.0,0.0037274]
[1733484253845,0.12430497,98171.0,98170.0,0.0037274]
[1733484254077,0.11390786,98171.0,98170.0,0.0017274]
[1733484254289,0.10630497,98171.0,98170.0,0.0017274]
[1733484254506,0.12430497,98171.0,98170.0,0.0037274]
[1733484255755,0.21490786,98171.0,98170.0,0.0037274]
[1733484255957,0.21363443,98171.0,98170.0,0.0037274]
[1733484259662,0.10860289,98171.0,98170.0,0.0037274]
[1733484259871,0.10227339,98171.0,98170.0,0.0037274]
[1733484260529,0.3311345,98171.0,98170.0,0.0037274]
[1733484260749,0.387464,98171.0,98170.0,0.0037274]
[1733484260960,0.537464,98171.0,98170.0,0.0037274]
[1733484261174,0.54962437,98171.0,98170.0,0.0037274]
[1733484261647,0.54962437,98171.0,98167.0,0.00017416]
[1733484261648,0.05,98168.0,98167.0,0.00017416]
[1733484261885,0.05,98168.0,98140.0,0.0017278]
[1733484261886,0.203788,98141.0,98140.0,0.0017278]
[1733484263174,0.252183,98144.0,98140.0,0.0017278]
[1733484263430,0.008,98141.0,98140.0,0.0017278]
[1733484264083,0.009,98141.0,98140.0,0.0017278]
[1733484265825,0.017,98141.0,98140.0,0.0017278]
[1733484274399,0.017,98141.0,98140.0,0.00274669]
[1733484274616,0.017,98141.0,98140.0,0.00274661]
[1733484275499,0.009,98141.0,98140.0,0.0247278]
[1733484275709,0.009,98141.0,98140.0,0.0017278]
[1733484275916,0.008,98141.0,98140.0,0.0017278]
[1733484276152,0.0291782,98141.0,98140.0,0.0017278]
[1733484276360,0.0301782,98141.0,98140.0,0.0017278]
[1733484276571,0.0211782,98141.0,98140.0,0.0017278]
[1733484276788,0.0291782,98141.0,98140.0,0.0017278]
[1733484277004,0.0381782,98141.0,98140.0,0.0017278]
[1733484277658,0.0471782,98141.0,98140.0,0.0017278]
[1733484277884,0.0391782,98141.0,98140.0,0.0017278]
[1733484278321,0.0461782,98141.0,98140.0,0.0017278]
[1733484278973,0.0452,98142.0,98140.0,0.0017278]
[1733484279451,0.008,98141.0,98140.0,0.0017278]
[1733484279659,0.017,98141.0,98140.0,0.0017278]
[1733484279866,0.0452,98142.0,98140.0,0.0017278]
[1733484280084,0.0542,98142.0,98140.0,0.0017278]
[1733484280316,0.04630287,98141.0,98140.0,0.0017278]
[1733484280540,0.04757657,98141.0,98140.0,0.0017278]
[1733484280766,0.40130804,98141.0,98140.0,0.0017278]
[1733484280988,0.40319411,98141.0,98140.0,0.0017278]
[1733484282503,0.41119411,98141.0,98140.0,0.0017278]
[1733484282927,0.42019411,98141.0,98140.0,0.0017278]
[1733484286230,0.41519411,98141.0,98140.0,0.0017278]
[1733484286443,0.37390027,98141.0,98140.0,0.0017278]
[1733484288785,0.29180027,98141.0,98140.0,0.0017278]
[1733484289181,0.2796349,98141.0,98140.0,0.0017278]
[1733484293932,0.3623349,98141.0,98140.0,0.0017278]
[1733484294174,0.36233968,98141.0,98140.0,0.0017278]
[1733484294385,1.8745127,98141.0,98140.0,0.0017278]
[1733484294591,1.97140762,98141.0,98140.0,0.0017278]
[1733484294839,0.15,98140.0,98106.0,0.09115003]
[1733484295061,0.15,98140.0,98100.0,0.0017286]
[1733484295062,0.203859,98107.0,98100.0,0.0017286]
[1733484295304,0.203867,98104.0,98100.0,0.0017286]
[1733484295521,0.407734,98104.0,98100.0,0.00231006]
[1733484295979,0.279567,98103.0,98100.0,0.00231006]
[1733484296204,0.203871,98101.0,98100.0,0.00231006]
[1733484296417,0.21147445,98101.0,98100.0,0.00231006]
[1733484296850,0.58970599,98101.0,98100.0,0.00231006]
[1733484297076,0.60186138,98101.0,98100.0,0.00231006]
[1733484297283,0.64934747,98101.0,98100.0,0.00231006]
[1733484297499,0.66909866,98101.0,98100.0,0.00231006]
[1733484297717,0.60185373,98101.0,98100.0,0.00231006]
[1733484298152,0.60985373,98101.0,98100.0,0.00231006]
[1733484298816,0.61885373,98101.0,98100.0,0.00231006]
[1733484299041,0.61085373,98101.0,98100.0,0.00231006]
[1733484299246,0.70674865,98101.0,98100.0,0.00231006]
[1733484299453,0.71574865,98101.0,98100.0,0.00231006]
[1733484299921,0.60185373,98101.0,98100.0,0.00231006]
[1733484300594,0.60182647,98101.0,98100.0,0.00231006]
[1733484300804,0.63687454,98101.0,98100.0,0.00231006]
[1733484301473,2.14587454,98101.0,98100.0,0.00231006]
[1733484302157,2.12787454,98101.0,98100.0,0.00231006]
[1733484302390,2.25076946,98101.0,98100.0,0.00231006]
[1733484302605,2.24176946,98101.0,98100.0,0.00231006]
[1733484303035,2.25076946,98101.0,98100.0,0.00231006]
[1733484303246,2.24176946,98101.0,98100.0,0.00231006]
[1733484303911,2.23276946,98101.0,98100.0,0.00231006]
[1733484304125,0.74176946,98101.0,98100.0,0.00231006]
[1733484304780,0.62787454,98101.0,98100.0,0.00231006]
[1733484305031,0.54834735,98101.0,98100.0,0.00231006]
[1733484305247,0.55734735,98101.0,98100.0,0.00231006]
[1733484305481,0.53934735,98101.0,98100.0,0.00231006]
[1733484305683,0.55734735,98101.0,98100.0,0.00231006]
[1733484306117,0.54834735,98101.0,98100.0,0.00231006]
[1733484306347,0.55734735,98101.0,98100.0,0.00231006]
[1733484307007,0.52228203,98101.0,98100.0,0.00231006]
[1733484307232,0.53128203,98101.0,98100.0,0.00231006]
[1733484307450,0.66508863,98101.0,98100.0,0.00231006]
[1733484307690,0.65608863,98101.0,98100.0,0.00231006]
[1733484307922,0.64708863,98101.0,98100.0,0.00231006]
[1733484308173,0.66508863,98101.0,98100.0,0.00231006]
[1733484308400,0.65608863,98101.0,98100.0,0.00231006]
[1733484308630,0.64708863,98101.0,98100.0,0.00231006]
[1733484308861,0.65608863,98101.0,98100.0,0.00231006]
[1733484309105,0.64708863,98101.0,98100.0,0.00231006]
[1733484309538,0.56308703,98101.0,98100.0,0.00231006]
[1733484309774,0.04838449,98101.0,98100.0,0.00231006]
[1733484309992,0.049805,98101.0,98100.0,0.00231006]